Cogmind - Beta 10.2 @@@ ROGUE MODE // 2022.01.14 @ 23:15:21 Player: Okkudo Result: Destroyed by G-34 Mercenary with Small Laser Performance ------------- Evolutions (0) 0 Regions Visited (1) 200 Robots Destroyed (5) 25 Value Destroyed (140) 140 Prototype IDs (0) 0 Alien Tech Used (0) 0 Bonus (0) 0 TOTAL SCORE: 365 Bonus ------- None Cogmind --------- Core Integrity 0/250 Matter 300/300 Energy 95/100 System Corruption 0% Temperature Cool (12) Movement Core (150) Ox2 Location -10/Materials Parts ------- > --- POWER (1) -------- (None) > --- PROPULSION (2) --- (None) > --- UTILITY (2) ------ Small Storage Unit Small Storage Unit > --- WEAPON (2) ------- (None) > --- INVENTORY (8) ---- Light Nuclear Core Light Treads Compact Wheel Sensor Array Peak State ------------ > --- POWER ------------ Ion Engine > --- PROPULSION ------- Light Treads Wheel > --- UTILITY ---------- Small Storage Unit Small Storage Unit > --- WEAPON ----------- EM Pulse Gun Medium Laser > --- INVENTORY -------- Light Treads Compact Wheel Medium Laser [Rating: 7] Favorites ----------- Power Ion Engine Engine Ion Engine Propulsion Light Treads Treads Light Treads Wheel Wheel Utility Small Storage Unit Storage Small Storage Unit Weapon Medium Laser Energy Gun Medium Laser Special Weapon Plasma Cutter Build | -11 -10 ------- Run | Scr Mat Slots Evolved . | . . Power . | . . Propulsion . | . . Utility . | . . Weapon . | . . Parts Attached 9 | 6 3 Power 1 | . 1 Engine 1 | . 1 Core . | . . Reactor . | . . Propulsion 2 | 2 . Treads 1 | 1 . Leg . | . . Wheel 1 | 1 . Hover . | . . Flight . | . . Utility 2 | 2 . Device . | . . Storage 2 | 2 . Processor . | . . Hackware . | . . Protection . | . . Artifact . | . . Weapon 4 | 2 2 Energy Gun 3 | 2 1 Energy Cannon . | . . Ballistic Gun . | . . Ballistic Cannon . | . . Launcher . | . . Special Weapon 1 | . 1 Impact Weapon . | . . Slashing Weapon . | . . Piercing Weapon . | . . Special Melee Weapon . | . . Unidentified Prototypes . | . . Parts Lost 7 | . 7 Power 1 | . 1 Propulsion 2 | . 2 Utility . | . . Weapon 4 | . 4 Highest Loss Streak 4 | . 4 Average Slot Usage (%) 78 | . 78 Engine 9 | . 9 Treads 11 | . 11 Wheel 8 | . 8 Storage 28 | . 28 Energy Gun 19 | . 19 Naked Turns . | . . Heaviest Build 17 | 12 17 Greatest Support 20 | 20 20 Greatest Overweight (x) 4 | 1 4 Average Overweight (x) 1 | . 1 Largest Inventory Capacity 8 | 8 8 Average Capacity 7 | 5 8 Most Carried 5 | 4 5 Average Carried 3 | 2 3 Final Capacity 8 | 8 8 Final Carried 4 | 4 4 Class Distribution -------------------- 100% | Mutant Dominant Class ---------------- Mutant | -10/Materials Resources | -11 -10 ----------- Run | Scr Mat Matter Collected 280 | 260 20 Remotely . | . . Salvage Created 286 | 71 215 Parts 15 | 5 10 Haulers Intercepted . | . . Recyclers Shooed . | . . Parts Field Recycled . | . . Retrieved Matter . | . . Parts Self-Destructed . | . . Prevented . | . . Kills | -11 -10 ------- Run | Scr Mat Combat Hostiles Destroyed 3 | . 3 Guns 3 | . 3 Classes Destroyed 2 | 1 1 Recycler 2 | 1 1 Grunt 3 | . 3 Best Kill Streak 3 | 1 3 Combat Bots Only 2 | . 2 Max Kills in Single Turn 1 | 1 1 Gunslinging . | . . Exploded . | . . Melee . | . . Uniques/NPCs Destroyed . | . . Combat | -11 -10 -------- Run | Scr Mat Damage Taken 915 | . 915 Core 258 | . 258 Absorbed by Shields . | . . Core Remaining (%) 100 | 100 . Volleys Fired 22 | 1 21 Largest 2 | 2 2 Hottest 90 | 90 90 Shots Fired 36 | 2 34 Gun 34 | 2 32 Cannon . | . . Launcher . | . . Special 2 | . 2 Kinetic . | . . Thermal 19 | 1 18 Explosive . | . . Electromagnetic 17 | 1 16 Robot Hit Streak 7 | 1 7 Robot Miss Streak 3 | . 3 Penetration Max . | . . Secondary Targets . | . . Shots Hit Robots 24 | 1 23 Core Hits 12 | 1 11 Critical Hits . | . . Critical Kills . | . . Critical Parts Destroyed . | . . Melee Attacks . | . . Impact . | . . Slashing . | . . Piercing . | . . Sneak Attacks . | . . Combat Hostiles . | . . Follow-up Attacks . | . . Damage Inflicted 301 | 15 286 Guns 279 | 15 264 Cannons . | . . Explosions . | . . Melee . | . . Ramming . | . . Kinetic . | . . Thermal 121 | . 121 Explosive . | . . Electromagnetic 180 | 15 165 Impact . | . . Slashing . | . . Piercing . | . . Highest Corruption . | . . Average Corruption . | . . Corruption Purged . | . . Overload Shots . | . . Overflow Damage . | . . Projectiles . | . . Explosions . | . . Melee . | . . Knockbacks . | . . Impact . | . . Kinetic . | . . Secondary . | . . Self-Inflicted Damage . | . . Shots . | . . Rammed . | . . Targets Rammed . | . . Kicked . | . . Crushed . | . . Highest Temperature 198 | 15 198 Average Temperature 106 | 10 109 Received Heat Transfer 501 | . 501 Siege Activations . | . . Robots Corrupted . | . . Combat Hostiles . | . . Parts Fried . | . . Impact Corruptions . | . . Robots Melted . | . . Combat Hostiles . | . . Parts Melted . | . . Heat Transferred 370 | . 370 Parts Sabotaged . | . . Parts Stolen . | . . Parts Stripped . | . . Power Chain Reactions . | . . Missiles Intercepted . | . . Alert | -11 -10 ------- Run | Scr Mat Peak Influence 80 | 5 80 Initial 3 | . 3 Average 40 | 3 50 Maximum Alert Level . | . . Low Security (%) 100 | 100 100 Level 1 . | . . Level 2 . | . . Level 3 . | . . Level 4 . | . . Level 5 . | . . High Security . | . . Max Security . | . . Squads Dispatched 1 | . 1 Investigation 1 | . 1 Extermination . | . . Reinforcement . | . . Assault . | . . Garrison . | . . Intercept . | . . Construction Impeded . | . . Haulers Reinforced . | . . Stealth | -11 -10 --------- Run | Scr Mat Distress Signals . | . . Communications Jammed . | . . Distress Signals . | . . Times Spotted 12 | . 12 Peak Tracking Total 8 | . 8 Tactical Retreats 1 | . 1 Traps | -11 -10 ------- Run | Scr Mat Traps Triggered . | . . Indirectly . | . . Trap Hack Attempts . | . . Triggered . | . . Disarmed . | . . Reprogrammed . | . . Reused . | . . Traps Extracted . | . . Installed . | . . Triggered . | . . Machines | -11 -10 ---------- Run | Scr Mat Machines Disabled . | . . Max in Single Turn . | . . Machines Sabotaged . | . . Garrisons Compromised . | . . Overloaded Fab Kills . | . . Fab Network Shutdowns . | . . Hacking | -11 -10 --------- Run | Scr Mat Machines Accessed 1 | . 1 Terminals 1 | . 1 Fabricators . | . . Repair Stations . | . . Recycling Units . | . . Scanalyzers . | . . Garrison Access . | . . Total Hacks 4 | . 4 Successful 2 | . 2 Failed 2 | . 2 Catastrophic . | . . Database Lockouts . | . . Manual 3 | . 3 Terminals 4 | . 4 Fabricators . | . . Repair Stations . | . . Recycling Units . | . . Scanalyzers . | . . Garrison Access . | . . Terminal Hacks 1 | . 1 Branch Access Points 1 | . 1 Fabricator Hacks . | . . Repair Station Hacks . | . . Recycling Unit Hacks . | . . Scanalyzer . | . . Garrison Access Hacks . | . . Unauthorized Hacks 1 | . 1 Terminals 1 | . 1 Botnet 1 | . 1 Fabricators . | . . Repair Stations . | . . Recycling Units . | . . Scanalyzers . | . . Garrison Access . | . . Data Cores Recovered . | . . Used . | . . Hacking Detections 1 | . 1 Full Trace Events 1 | . 1 Feedback Events . | . . Feedback Blocked . | . . Robot Schematics Acquired . | . . Robots Built . | . . Matter . | . . Time . | . . Total Robot Build Rating . | . . Part Schematics Acquired . | . . Parts Built . | . . Matter . | . . Time . | . . Total Part Build Rating . | . . Parts Repaired . | . . Time . | . . Parts Recycled . | . . Recycled Matter . | . . Retrieved Matter . | . . Retrieved Components . | . . Parts Scanalyzed . | . . Part Schematics Acquired . | . . Parts Damaged . | . . Bothacking | -11 -10 ------------ Run | Scr Mat Used RIF Installer . | . . Robots Hacked . | . . Non-combat . | . . Combat . | . . Robot Hacks Applied . | . . Relay Couplers Released . | . . Robots Rewired . | . . Allies Hacked . | . . Hacks Repelled . | . . Allies | -11 -10 -------- Run | Scr Mat Total Allies . | . . Largest Group . | . . Highest-Rated Group . | . . Highest-Rated Ally . | . . Total Orders . | . . Ally Attacks . | . . Total Damage . | . . Kills . | . . Allies Corrupted . | . . Allies Melted . | . . Intel | -11 -10 ------- Run | Scr Mat Robot Analysis Total . | . . Derelict Logs Recovered . | . . Drone Launches . | . . Drone Recoveries . | . . Exploration | -11 -10 ------------- Run | Scr Mat Turns Passed 292 | 65 227 Spaces Moved 127 | 47 80 Core 34 | 3 31 Treads 17 | 9 8 Legs . | . . Wheels 76 | 35 41 Hover . | . . Flight . | . . Fastest Speed 50 | 50 90 Average Speed 132 | 98 152 Slowest Speed 250 | 160 250 Overloaded Moves . | . . Propulsion Burnouts . | . . Robots Hopped . | . . Cave-ins Triggered . | . . Exploration Rate (%) 11 | 5 18 Regions Visited 1 Branch Regions . Pre-discovered Areas . | . . Known Exits Taken . | . . Unknown Exits Taken 1 | 1 . Scrap Searched . | . . Spaces Dug . | . . Terrain Destroyed . | . . Melee . | . . Projectile . | . . AOE . | . . Terrain Rammed . | . . Walls Destroyed . | . . Machines Disabled . | . . Actions | -11 -10 --------- Run | Scr Mat Total 213 | 63 150 Wait 43 | . 43 Move 126 | 46 80 Hop . | . . Pick Up 13 | 10 3 Fast Attach . | . . Attach 9 | 6 3 Detach . | . . Swap . | . . Drop . | . . Fire 22 | 1 21 Melee . | . . Ram . | . . Kick . | . . Crush . | . . Escape Stasis . | . . Rewire . | . . Trap . | . . Miscellaneous . | . . Route ------- -11/Scrapyard -10/Materials (discovered 1 exit: *Min) History --------- Turn | Location | Event 6 | -11/Scrapyard | Discovered new exit (range 15) 66 | -11/Scrapyard | Entered Materials 157 | -10/Materials | Identified exit to Mines 239 | -10/Materials | Lost 3 parts (1n2w) 269 | -10/Materials | Core integrity fell below 50% 285 | -10/Materials | Core integrity fell below 20% 293 | -10/Materials | Destroyed by G-34 Mercenary with Small Laser Last Messages --------------- Awaiting botnet instructions. 00157_ ALERT: Suspicious activity at Terminal M002. Dispatching Investigation squad. 00175_ K-01 Serf cleans the Processing Tank. 00196_ Med. Laser destroyed. 00202_ EM Pulse Gun destroyed. 00208_ Wheel destroyed. 00208_ G-47 Trooper destroyed. 00213_ Acquired 5 matter. 00220_ Acquired Lgt. Nuclear Core. 00230_ K-01 Serf cleans the Terminal. 00253_ Med. Laser destroyed. 00258_ Lgt. Treads destroyed. 00259_ R-06 Scavenger collects Imp. Heat Sink. 00267_ R-06 Scavenger collects Aluminum Leg. 00279_ Ion Engine destroyed. 00279_ Acquired Plasma Cutter. 00288_ G-34 Mercenary destroyed. 00289_ Plasma Cutter destroyed. 00290_ Acquired 5 matter. Map ----- +----------------------------------------------------+ | ???????????????????????????????????????# #?????? | | ???????????????????????????????????????# #?????? | | ???????????????????????????????????????# #?????? | | ???????????????????????????????????????# #?????? | | ???????????????????????????????????????# ####### | | ???????????????????????????????????????# # | | ???????????????????????????????????????# # * | | ???????????????????????????????????????# #% """ | | ???????????????????????????????????????# !%+! """ | | ???????????????????????????????????????#[%=#! """ | | ?????????????????????????#######?####### = # | | ?????????????????????????# ####### | | ?????????????????????????# #?####### # | | ??????????????????????"??+ #???????# # "" | | ??????????????????????""?# #???????# # "" | | ??????????????????????""?? ????????# # "" | | ?????????????????????? ??# ########## # | | ?????????????#####????#+??# # # + | | ????????????#""|"|"???# ??# # """"" # # | | ????????????# "|"|" ??# ??# #! """"" # # "T | | ???????????## ### ### # """"" # # "" | | ??????????? w # %/ ####### | | ?????????? > t g gg + !### #?????? | | ??????????? %* # ""T"" #?# #?????? | | ????????????# # #### """"" #?# ?????? | | ????????????????????# @ #??# #?# ????? | | ????????????????????#!!| !!#??########+#?# ???? | | ????????????????????#!!||!!#?????????????? #??? | | ????????????????????########?????????????? ?#??? | | ?????????????????????????????????????????? ???? | | ??????????????????????????????????????????+##+???? | | ?????????????????????????????????????????????????? | | ?????????????????????????????????????????????????? | | ?????????????????????????????????????????????????? | | ?????????????????????????????????????????????????? | | ?????????????????????????????????????????????????? | | ?????????????????????????????????????????????????? | | ?????????????????????????????????????????????????? | | ?????????????????????????????????????????????????? | | ?????????????????????????????????????????????????? | | ?????????????????????????????????????????????????? | | ?????????????????????????????????????????????????? | | ?????????????????????????????????????????????????? | | ?????????????????????????????????????????????????? | | ?????????????????????????????????????????????????? | | ?????????????????????????????????????????????????? | | ?????????????????????????????????????????????????? | | ?????????????????????????????????????????????????? | | ?????????????????????????????????????????????????? | | ?????????????????????????????????????????????????? | +----------------------------------------------------+ Best States ------------- Heat Dissipation 25 Energy Generation 10 Energy Capacity 250 Matter Stores 300 Matter Capacity 300 Sight Range 16 Terrain Scan Density 10 Evasion (%) 44 Recoil Reduction 1 Item Schematics ----------------- None Robot Schematics ------------------ None Fabricated ------------ Nothing Alien Tech Used ----------------- None Achievements -------------- None Challenges ------------ None Game ------ Seed SwarmLaserSlayer Manual? 0 Play Time 00:06:35 Cumulative 27.8 hours Start 2022.01.14 @ 23:07:53 End 2022.01.14 @ 23:15:21 Sessions 1 Manual Loads 0 Difficulty Rogue Special Mode None Game No. 63 Rogue 63 Adventurer 0 Explorer 0 Win Type - Total 0 Types 0/0/0/0/0/0/0/0/0 Lore% 22 Gallery% 22 Achievement% 20 Wizard Run 0 Options --------- ASCII 0 Keyboard 0 Movement Mouse Keybinds 0 Fullscreen 1 Font 12/Terminus Map View 83x54 Tactical HUD 1 Map Filters NONE Filters NONE Steam 1 RUN: 12d8fdb7-4a83-48ef-8275-bd78a2e439b1